[Event "*** Titled Tuesday Blitz"]
[Site "Chess.com"]
[Date "2020.04.21"]
[Round "5"]
[White "Galileo22"]
[Black "CMS13"]
[Result "1-0"]
[WhiteElo "2327"]
[BlackElo "2127"]
[TimeControl "180+1"]
[EndTime "10:56:55 PDT"]
[Termination "Galileo22 won by resignation"]

1. Nf3 {[%clk 0:03:00.9]} 1... d5 {[%clk 0:02:59.7]} 2. g3 {[%clk 0:03:01.3]}
2... Nf6 {[%clk 0:02:59]} 3. Bg2 {[%clk 0:03:01.9]} 3... Bg4 {[%clk 0:02:59]} 4.
O-O {[%clk 0:03:02.5]} 4... Nbd7 {[%clk 0:02:58.9]} 5. d3 {[%clk 0:03:01]} 5...
e6 {[%clk 0:02:58]} 6. Qe1 {[%clk 0:03:01]} 6... c6 {[%clk 0:02:54.9]} 7. e4
{[%clk 0:02:58]} 7... Qc7 {[%clk 0:02:52.9]} 8. e5 {[%clk 0:02:43]} 8... Bxf3
{[%clk 0:02:44.1]} 9. exf6 {[%clk 0:02:36.1]} 9... Bxg2 {[%clk 0:02:41.6]} 10.
fxg7 {[%clk 0:02:36.3]} 10... Bxg7 {[%clk 0:02:39.2]} 11. Kxg2 {[%clk
0:02:36.8]} 11... O-O-O {[%clk 0:02:35.4]} 12. Nd2 {[%clk 0:02:33.2]} 12... h5
{[%clk 0:02:25.4]} 13. f4 {[%clk 0:02:26.3]} 13... h4 {[%clk 0:02:22.4]} 14. g4
{[%clk 0:02:25.9]} 14... h3+ {[%clk 0:02:07.4]} 15. Kh1 {[%clk 0:02:25.6]} 15...
e5 {[%clk 0:01:42.5]} 16. f5 {[%clk 0:02:22.6]} 16... Bf6 {[%clk 0:01:31.1]} 17.
Nf3 {[%clk 0:02:19.5]} 17... Rdg8 {[%clk 0:01:24.6]} 18. g5 {[%clk 0:02:12.3]}
18... Be7 {[%clk 0:01:05.8]} 19. f6 {[%clk 0:01:53.9]} 19... Bd6 {[%clk
0:01:02.9]} 20. Bd2 {[%clk 0:01:42.3]} 20... Nc5 {[%clk 0:01:02.2]} 21. b4
{[%clk 0:01:35.2]} 21... Ne6 {[%clk 0:00:58.7]} 22. c4 {[%clk 0:01:32.2]} 22...
dxc4 {[%clk 0:00:38.5]} 23. dxc4 {[%clk 0:01:27.8]} 23... Nd4 {[%clk 0:00:35.9]}
24. c5 {[%clk 0:01:17.8]} 24... Nxf3 {[%clk 0:00:26.9]} 25. Rxf3 {[%clk
0:01:13.9]} 25... Bf8 {[%clk 0:00:21.7]} 26. Qe4 {[%clk 0:01:12.9]} 26... Qd7
{[%clk 0:00:19.9]} 27. Rd3 {[%clk 0:01:00.5]} 27... Qe6 {[%clk 0:00:17.3]} 28.
Be3 {[%clk 0:00:59.5]} 28... Rh5 {[%clk 0:00:14.9]} 29. Rg1 {[%clk 0:00:39.4]}
29... b6 {[%clk 0:00:09.8]} 30. a3 {[%clk 0:00:36.2]} 30... bxc5 {[%clk
0:00:09.7]} 31. bxc5 {[%clk 0:00:37.1]} 31... Qa2 {[%clk 0:00:07.9]} 32. Qf5+
{[%clk 0:00:34.3]} 32... Qe6 {[%clk 0:00:06]} 33. Qe4 {[%clk 0:00:29.4]} 33...
Kc7 {[%clk 0:00:04.2]} 34. Qa4 {[%clk 0:00:25.4]} 34... Kb8 {[%clk 0:00:03.6]}
35. Rb1+ {[%clk 0:00:18.7]} 35... Ka8 {[%clk 0:00:03.9]} 36. Rd8+ {[%clk
0:00:18.2]} 1-0

[Event "*** Titled Tuesday Blitz"]
[Site "Chess.com"]
[Date "2020.04.21"]
[Round "5"]
[White "Shaman91"]
[Black "lucliasco"]
[Result "0-1"]
[WhiteElo "2839"]
[BlackElo "2650"]
[TimeControl "180+1"]
[EndTime "10:56:56 PDT"]
[Termination "lucliasco won by checkmate"]

1. e4 {[%clk 0:03:00.9]} 1... e5 {[%clk 0:02:48.7]} 2. Nf3 {[%clk 0:02:58]} 2...
d6 {[%clk 0:02:48.1]} 3. Bc4 {[%clk 0:02:56.1]} 3... Be7 {[%clk 0:02:12.6]} 4.
O-O {[%clk 0:02:53.2]} 4... Nf6 {[%clk 0:02:12]} 5. d3 {[%clk 0:02:53.1]} 5...
O-O {[%clk 0:02:08.7]} 6. Re1 {[%clk 0:02:48.9]} 6... Nc6 {[%clk 0:02:07.8]} 7.
a4 {[%clk 0:02:47.9]} 7... Be6 {[%clk 0:02:05.6]} 8. Bxe6 {[%clk 0:02:45.6]}
8... fxe6 {[%clk 0:02:02.7]} 9. c3 {[%clk 0:02:45.7]} 9... a6 {[%clk 0:01:57.8]}
10. h3 {[%clk 0:02:41.1]} 10... Qd7 {[%clk 0:01:58.3]} 11. Be3 {[%clk 0:02:41]}
11... d5 {[%clk 0:01:53.7]} 12. Nbd2 {[%clk 0:02:33.9]} 12... Rad8 {[%clk
0:01:54]} 13. Qb3 {[%clk 0:02:25.3]} 13... Na5 {[%clk 0:01:47]} 14. Qc2 {[%clk
0:02:24.3]} 14... Nc6 {[%clk 0:01:47.4]} 15. Bg5 {[%clk 0:02:19.9]} 15... h6
{[%clk 0:01:44.3]} 16. Bh4 {[%clk 0:02:19.7]} 16... Nh5 {[%clk 0:01:39.2]} 17.
Bxe7 {[%clk 0:02:13.1]} 17... Qxe7 {[%clk 0:01:27.6]} 18. b4 {[%clk 0:02:13.2]}
18... Nf4 {[%clk 0:01:22.4]} 19. b5 {[%clk 0:02:12.8]} 19... Nb8 {[%clk
0:01:22]} 20. exd5 {[%clk 0:02:06.5]} 20... Rxd5 {[%clk 0:01:22.9]} 21. bxa6
{[%clk 0:01:54.2]} 21... Nxa6 {[%clk 0:01:18.3]} 22. d4 {[%clk 0:01:54.4]} 22...
exd4 {[%clk 0:01:15]} 23. cxd4 {[%clk 0:01:55.3]} 23... Qf6 {[%clk 0:01:11.8]}
24. Rab1 {[%clk 0:01:50.9]} 24... c5 {[%clk 0:01:10.8]} 25. Rxb7 {[%clk
0:01:36.2]} 25... cxd4 {[%clk 0:00:53.1]} 26. Qc6 {[%clk 0:01:20.6]} 26... Nc5
{[%clk 0:00:35.9]} 27. Rb5 {[%clk 0:01:10.9]} 27... Ncd3 {[%clk 0:00:36.3]} 28.
Reb1 {[%clk 0:00:59.5]} 28... Qg6 {[%clk 0:00:33.4]} 29. g3 {[%clk 0:00:53.3]}
29... Nxh3+ {[%clk 0:00:29.2]} 30. Kf1 {[%clk 0:00:53.6]} 30... Ndxf2 {[%clk
0:00:28.8]} 31. Rb8 {[%clk 0:00:51.1]} 31... Rf5 {[%clk 0:00:25.4]} 32. Rxf8+
{[%clk 0:00:49.8]} 32... Rxf8 {[%clk 0:00:25.1]} 33. Qd6 {[%clk 0:00:49.5]}
33... Ne4 {[%clk 0:00:19.2]} 34. Nxe4 {[%clk 0:00:22.2]} 34... Qxe4 {[%clk
0:00:20.1]} 35. Kg2 {[%clk 0:00:18.3]} 35... Ng5 {[%clk 0:00:17.1]} 36. Rb8
{[%clk 0:00:13.5]} 36... Qxf3+ {[%clk 0:00:16.1]} 37. Kg1 {[%clk 0:00:13.3]}
37... Qd1+ {[%clk 0:00:16]} 38. Kh2 {[%clk 0:00:13.1]} 38... Qe2+ {[%clk
0:00:16.8]} 39. Kh1 {[%clk 0:00:12]} 39... Qf1+ {[%clk 0:00:15.9]} 40. Kh2
{[%clk 0:00:12.4]} 40... Nf3# {[%clk 0:00:16.4]} 0-1

[Event "*** Titled Tuesday Blitz"]
[Site "Chess.com"]
[Date "2020.04.21"]
[Round "5"]
[White "MathiasWomacka"]
[Black "bakki78"]
[Result "0-1"]
[WhiteElo "2455"]
[BlackElo "2768"]
[TimeControl "180+1"]
[EndTime "10:57:01 PDT"]
[Termination "bakki78 won by resignation"]

1. e4 {[%clk 0:03:00.9]} 1... c5 {[%clk 0:02:59.7]} 2. Nf3 {[%clk 0:03:00.6]}
2... Nc6 {[%clk 0:03:00.2]} 3. d4 {[%clk 0:03:00.4]} 3... cxd4 {[%clk
0:03:00.3]} 4. Nxd4 {[%clk 0:03:01.3]} 4... Nf6 {[%clk 0:03:00.7]} 5. Nc3 {[%clk
0:03:01.7]} 5... d6 {[%clk 0:03:01.3]} 6. Be2 {[%clk 0:03:01.4]} 6... e5 {[%clk
0:03:01.3]} 7. Nf3 {[%clk 0:03:01.3]} 7... h6 {[%clk 0:03:01.9]} 8. O-O {[%clk
0:03:00.9]} 8... Be7 {[%clk 0:03:02.5]} 9. Re1 {[%clk 0:03:00.8]} 9... O-O
{[%clk 0:03:03]} 10. h3 {[%clk 0:02:59.9]} 10... b6 {[%clk 0:03:03.1]} 11. Bf1
{[%clk 0:02:57.4]} 11... Bb7 {[%clk 0:03:02.7]} 12. b3 {[%clk 0:02:53.1]} 12...
Rc8 {[%clk 0:02:55.7]} 13. Bb2 {[%clk 0:02:52.4]} 13... Nb8 {[%clk 0:02:55.3]}
14. a4 {[%clk 0:02:43.5]} 14... a6 {[%clk 0:02:51.2]} 15. Nd2 {[%clk 0:02:34.2]}
15... Nbd7 {[%clk 0:02:39.6]} 16. Nc4 {[%clk 0:02:33.8]} 16... Nc5 {[%clk
0:02:39.7]} 17. f3 {[%clk 0:02:19.4]} 17... Ne6 {[%clk 0:02:35.8]} 18. a5 {[%clk
0:02:16.5]} 18... b5 {[%clk 0:02:29.9]} 19. Nb6 {[%clk 0:02:16.2]} 19... Rb8
{[%clk 0:02:26.1]} 20. Ncd5 {[%clk 0:02:13.7]} 20... Nxd5 {[%clk 0:02:25.3]} 21.
Nxd5 {[%clk 0:02:13.5]} 21... Bh4 {[%clk 0:02:21.5]} 22. Re3 {[%clk 0:01:58.2]}
22... Bxd5 {[%clk 0:02:08.1]} 23. Qxd5 {[%clk 0:01:52.1]} 23... Qc7 {[%clk
0:02:08.1]} 24. c4 {[%clk 0:01:44.6]} 24... Qa7 {[%clk 0:02:06.4]} 25. Qd2
{[%clk 0:01:23.4]} 25... Bg5 {[%clk 0:02:04.1]} 26. Re1 {[%clk 0:01:22.1]} 26...
Nc5 {[%clk 0:02:04.5]} 27. Qf2 {[%clk 0:01:15.8]} 27... Bxe3 {[%clk 0:02:00.3]}
28. Qxe3 {[%clk 0:01:14.6]} 28... b4 {[%clk 0:01:57.7]} 29. Kh2 {[%clk
0:01:12.2]} 29... Qc7 {[%clk 0:01:53.7]} 30. Ra1 {[%clk 0:01:11.2]} 30... Rfe8
{[%clk 0:01:46]} 31. Bc1 {[%clk 0:01:10.8]} 31... Ne6 {[%clk 0:01:43.1]} 32. Bd2
{[%clk 0:01:10.3]} 32... Qc5 {[%clk 0:01:42.9]} 33. Qe1 {[%clk 0:01:08.6]} 33...
Nd4 {[%clk 0:01:42.1]} 34. Be3 {[%clk 0:00:55.4]} 34... Qc7 {[%clk 0:01:33.7]}
35. Qd1 {[%clk 0:00:54.2]} 35... Ne6 {[%clk 0:01:28.9]} 36. Qd2 {[%clk
0:00:44.6]} 36... Nc5 {[%clk 0:01:28.4]} 37. Qc2 {[%clk 0:00:43.7]} 37... Re6
{[%clk 0:01:27.5]} 38. g3 {[%clk 0:00:41.2]} 38... Rf6 {[%clk 0:01:20.6]} 39.
Bg2 {[%clk 0:00:40.7]} 39... h5 {[%clk 0:01:17.8]} 40. h4 {[%clk 0:00:40.5]}
40... Ne6 {[%clk 0:01:12.7]} 41. Qd2 {[%clk 0:00:37.4]} 41... Nc5 {[%clk
0:01:12.3]} 42. Qc2 {[%clk 0:00:37.3]} 42... Rg6 {[%clk 0:01:11.7]} 43. Bh3
{[%clk 0:00:33.3]} 43... Ne6 {[%clk 0:01:07.3]} 44. Qd2 {[%clk 0:00:27.4]} 44...
Nd4 {[%clk 0:01:06.8]} 45. Bxd4 {[%clk 0:00:26.1]} 45... exd4 {[%clk 0:01:06.6]}
46. Qxd4 {[%clk 0:00:26.6]} 46... d5 {[%clk 0:01:06.8]} 47. f4 {[%clk
0:00:17.8]} 47... dxc4 {[%clk 0:01:04.2]} 48. Qxc4 {[%clk 0:00:14]} 48... Qxc4
{[%clk 0:01:03]} 49. bxc4 {[%clk 0:00:14.9]} 49... b3 {[%clk 0:01:02.9]} 50. Rb1
{[%clk 0:00:12.9]} 50... b2 {[%clk 0:01:00.1]} 51. e5 {[%clk 0:00:06.1]} 51...
Rc6 {[%clk 0:00:59]} 52. Bf1 {[%clk 0:00:05.7]} 52... Rc5 {[%clk 0:00:59.4]} 0-1

[Event "*** Titled Tuesday Blitz"]
[Site "Chess.com"]
[Date "2020.04.21"]
[Round "5"]
[White "stefan_95"]
[Black "Bryakin_Mikhail"]
[Result "1-0"]
[WhiteElo "2647"]
[BlackElo "2784"]
[TimeControl "180+1"]
[EndTime "10:57:04 PDT"]
[Termination "stefan_95 won by checkmate"]

1. d4 {[%clk 0:03:00.9]} 1... e6 {[%clk 0:02:55.3]} 2. Nf3 {[%clk 0:03:00.9]}
2... f5 {[%clk 0:02:55]} 3. g3 {[%clk 0:03:00.2]} 3... Nf6 {[%clk 0:02:55.5]} 4.
Bg2 {[%clk 0:03:00.8]} 4... c6 {[%clk 0:02:53.9]} 5. O-O {[%clk 0:03:01.3]} 5...
d5 {[%clk 0:02:53.3]} 6. c4 {[%clk 0:03:02.2]} 6... Bd6 {[%clk 0:02:52.9]} 7.
Nc3 {[%clk 0:03:00.5]} 7... O-O {[%clk 0:02:52.9]} 8. Qc2 {[%clk 0:03:00.7]}
8... Qe7 {[%clk 0:02:52.3]} 9. Bg5 {[%clk 0:03:00.1]} 9... Bd7 {[%clk
0:02:50.6]} 10. Rab1 {[%clk 0:02:58.7]} 10... Be8 {[%clk 0:02:46.5]} 11. b4
{[%clk 0:02:52.7]} 11... a6 {[%clk 0:02:46.7]} 12. c5 {[%clk 0:02:49.1]} 12...
Bc7 {[%clk 0:02:45.7]} 13. a4 {[%clk 0:02:49.5]} 13... h6 {[%clk 0:02:44.4]} 14.
Bxf6 {[%clk 0:02:49.1]} 14... Qxf6 {[%clk 0:02:44]} 15. e3 {[%clk 0:02:48.9]}
15... Bh5 {[%clk 0:02:42.3]} 16. b5 {[%clk 0:02:42.9]} 16... axb5 {[%clk
0:02:41.9]} 17. axb5 {[%clk 0:02:43.8]} 17... Nd7 {[%clk 0:02:38.3]} 18. bxc6
{[%clk 0:02:39.7]} 18... bxc6 {[%clk 0:02:39.2]} 19. Rb7 {[%clk 0:02:34.6]}
19... Rfc8 {[%clk 0:02:38.6]} 20. Na2 {[%clk 0:02:32.4]} 20... Bxf3 {[%clk
0:02:22.3]} 21. Bxf3 {[%clk 0:02:31.8]} 21... e5 {[%clk 0:02:21.8]} 22. Nb4
{[%clk 0:02:30.3]} 22... e4 {[%clk 0:01:59.3]} 23. Be2 {[%clk 0:02:22.4]} 23...
g5 {[%clk 0:01:55.9]} 24. Na6 {[%clk 0:02:09.3]} 24... Rxa6 {[%clk 0:01:44.3]}
25. Bxa6 {[%clk 0:02:08.7]} 25... Nb8 {[%clk 0:01:31.7]} 26. Be2 {[%clk
0:02:04.8]} 26... Nd7 {[%clk 0:01:16.3]} 27. Qa4 {[%clk 0:01:58.6]} 27... Nf8
{[%clk 0:01:13.3]} 28. Qa7 {[%clk 0:01:54.6]} 28... Ne6 {[%clk 0:01:13]} 29.
Rfb1 {[%clk 0:01:44.6]} 29... h5 {[%clk 0:01:05.7]} 30. Bxh5 {[%clk 0:01:39.4]}
30... g4 {[%clk 0:01:06.1]} 31. Qa6 {[%clk 0:01:32.9]} 31... Nd8 {[%clk
0:00:26]} 32. Ra7 {[%clk 0:01:10.7]} 32... Qe6 {[%clk 0:00:26.1]} 33. Ra8 {[%clk
0:01:10.1]} 33... Rxa8 {[%clk 0:00:24.2]} 34. Qxa8 {[%clk 0:01:11]} 34... Kg7
{[%clk 0:00:20.3]} 35. Ra1 {[%clk 0:01:06.2]} 35... Qe7 {[%clk 0:00:13.7]} 36.
Ra7 {[%clk 0:01:04.6]} 36... Kh6 {[%clk 0:00:14]} 37. Qc8 {[%clk 0:01:02.4]}
37... Ne6 {[%clk 0:00:13.4]} 38. Be8 {[%clk 0:00:55.7]} 38... f4 {[%clk
0:00:09.2]} 39. Bd7 {[%clk 0:00:49.8]} 39... fxe3 {[%clk 0:00:08.4]} 40. fxe3
{[%clk 0:00:41.1]} 40... Qg5 {[%clk 0:00:03.8]} 41. Qh8+ {[%clk 0:00:34.6]}
41... Kg6 {[%clk 0:00:03.9]} 42. Be8+ {[%clk 0:00:27.3]} 42... Kf5 {[%clk
0:00:03.9]} 43. Qh7+ {[%clk 0:00:27]} 43... Kf6 {[%clk 0:00:03.9]} 44. Qf7#
{[%clk 0:00:27]} 1-0

[Event "*** Titled Tuesday Blitz"]
[Site "Chess.com"]
[Date "2020.04.21"]
[Round "5"]
[White "ehrenfeld"]
[Black "PredragNikac"]
[Result "1/2-1/2"]
[WhiteElo "2458"]
[BlackElo "2274"]
[TimeControl "180+1"]
[EndTime "10:57:04 PDT"]
[Termination "Game drawn by repetition"]

1. e4 {[%clk 0:03:00.9]} 1... d5 {[%clk 0:02:58.9]} 2. exd5 {[%clk 0:03:00.4]}
2... Nf6 {[%clk 0:02:59]} 3. d4 {[%clk 0:03:00]} 3... Bg4 {[%clk 0:02:56.2]} 4.
Be2 {[%clk 0:02:59.6]} 4... Bxe2 {[%clk 0:02:55.4]} 5. Qxe2 {[%clk 0:02:59.6]}
5... Qxd5 {[%clk 0:02:55.4]} 6. Nf3 {[%clk 0:02:59.8]} 6... Nc6 {[%clk
0:02:55.7]} 7. c3 {[%clk 0:02:59.1]} 7... O-O-O {[%clk 0:02:54.6]} 8. O-O {[%clk
0:02:58.7]} 8... e6 {[%clk 0:02:53.2]} 9. Nbd2 {[%clk 0:02:55.6]} 9... Qh5
{[%clk 0:02:50.4]} 10. Re1 {[%clk 0:02:54.9]} 10... Bd6 {[%clk 0:02:49.7]} 11.
Nc4 {[%clk 0:02:52.6]} 11... Rhe8 {[%clk 0:02:48.6]} 12. h3 {[%clk 0:02:05.5]}
12... Nd5 {[%clk 0:02:42.2]} 13. Nfe5 {[%clk 0:02:02.4]} 13... Qxe2 {[%clk
0:02:40.5]} 14. Rxe2 {[%clk 0:02:02.3]} 14... Bxe5 {[%clk 0:02:40.2]} 15. Nxe5
{[%clk 0:01:57.4]} 15... Nxe5 {[%clk 0:02:40]} 16. Rxe5 {[%clk 0:01:57.4]} 16...
f6 {[%clk 0:02:35.1]} 17. Re1 {[%clk 0:01:56.9]} 17... e5 {[%clk 0:02:35.1]} 18.
dxe5 {[%clk 0:01:55.5]} 18... Rxe5 {[%clk 0:02:33.1]} 19. Rxe5 {[%clk
0:01:54.7]} 19... fxe5 {[%clk 0:02:34]} 20. Bg5 {[%clk 0:01:54.1]} 20... Re8
{[%clk 0:02:33.6]} 21. Rd1 {[%clk 0:01:51.7]} 21... c6 {[%clk 0:02:27.7]} 22.
Kf1 {[%clk 0:01:47.6]} 22... b5 {[%clk 0:02:25.6]} 23. Ke2 {[%clk 0:01:43.8]}
23... Kd7 {[%clk 0:02:24.9]} 24. a4 {[%clk 0:01:38.1]} 24... a6 {[%clk
0:02:21.2]} 25. axb5 {[%clk 0:01:37.6]} 25... axb5 {[%clk 0:02:22.1]} 26. Ra1
{[%clk 0:01:37.7]} 26... Ke6 {[%clk 0:02:22]} 27. Ra7 {[%clk 0:01:35.3]} 27...
h6 {[%clk 0:02:11.4]} 28. Be3 {[%clk 0:01:34.2]} 28... Kf6 {[%clk 0:02:07]} 29.
Kd3 {[%clk 0:01:25.6]} 29... Re7 {[%clk 0:01:59]} 30. Rxe7 {[%clk 0:01:16.1]}
30... Kxe7 {[%clk 0:01:55.5]} 31. Bc5+ {[%clk 0:01:12.3]} 31... Ke6 {[%clk
0:01:55.1]} 32. g3 {[%clk 0:01:09.2]} 32... h5 {[%clk 0:01:53.7]} 33. b3 {[%clk
0:01:03.8]} 33... g5 {[%clk 0:01:51.1]} 34. c4 {[%clk 0:00:58.4]} 34... bxc4+
{[%clk 0:01:50.7]} 35. bxc4 {[%clk 0:00:57.4]} 35... Nf6 {[%clk 0:01:50.8]} 36.
Be3 {[%clk 0:00:55.2]} 36... g4 {[%clk 0:01:47.7]} 37. hxg4 {[%clk 0:00:55]}
37... hxg4 {[%clk 0:01:46.3]} 38. Ba7 {[%clk 0:00:52.3]} 38... Kf5 {[%clk
0:01:43.9]} 39. Ke3 {[%clk 0:00:41]} 39... Ne4 {[%clk 0:01:41.6]} 40. Kd3 {[%clk
0:00:39.1]} 40... Nd6 {[%clk 0:01:35.1]} 41. Bb8 {[%clk 0:00:37.2]} 41... Nb7
{[%clk 0:01:24.6]} 42. Ba7 {[%clk 0:00:34.7]} 42... Na5 {[%clk 0:01:21.3]} 43.
Bb6 {[%clk 0:00:32.6]} 43... Nb7 {[%clk 0:01:18.2]} 44. Be3 {[%clk 0:00:32.1]}
44... c5 {[%clk 0:01:13.1]} 45. Bd2 {[%clk 0:00:28.2]} 45... e4+ {[%clk
0:01:08.4]} 46. Kc3 {[%clk 0:00:22.3]} 46... Nd8 {[%clk 0:01:03.7]} 47. Be3
{[%clk 0:00:21.1]} 47... Ne6 {[%clk 0:01:03.8]} 48. Kb3 {[%clk 0:00:21.3]} 48...
Nd4+ {[%clk 0:01:02.2]} 49. Ka4 {[%clk 0:00:20.5]} 49... Ke5 {[%clk 0:01:01.1]}
50. Ka5 {[%clk 0:00:19]} 50... Kd6 {[%clk 0:00:53.3]} 51. Kb6 {[%clk 0:00:18.3]}
51... Ne6 {[%clk 0:00:46.8]} 52. Kb5 {[%clk 0:00:17.1]} 52... Nc7+ {[%clk
0:00:42]} 53. Kb6 {[%clk 0:00:17.1]} 53... Ne6 {[%clk 0:00:42.6]} 54. Kb5 {[%clk
0:00:17]} 54... Nd4+ {[%clk 0:00:40.4]} 55. Kb6 {[%clk 0:00:17.2]} 55... Ne6
{[%clk 0:00:35.4]} 1/2-1/2

[Event "*** Titled Tuesday Blitz"]
[Site "Chess.com"]
[Date "2020.04.21"]
[Round "5"]
[White "matiss90"]
[Black "KarpovVadim"]
[Result "1/2-1/2"]
[WhiteElo "2491"]
[BlackElo "2323"]
[TimeControl "180+1"]
[EndTime "10:57:06 PDT"]
[Termination "Game drawn by repetition"]

1. e4 {[%clk 0:03:00.9]} 1... e5 {[%clk 0:02:59.2]} 2. Nf3 {[%clk 0:03:01.4]}
2... Nf6 {[%clk 0:02:58.9]} 3. Nxe5 {[%clk 0:02:59.1]} 3... d6 {[%clk
0:02:57.3]} 4. Nf3 {[%clk 0:02:59.7]} 4... Nxe4 {[%clk 0:02:57.3]} 5. Nc3 {[%clk
0:03:00.3]} 5... Nxc3 {[%clk 0:02:57.2]} 6. dxc3 {[%clk 0:03:01.2]} 6... Be7
{[%clk 0:02:57.1]} 7. Bf4 {[%clk 0:03:01.7]} 7... Nc6 {[%clk 0:02:53.9]} 8. Qd2
{[%clk 0:03:02]} 8... Be6 {[%clk 0:02:53.9]} 9. O-O-O {[%clk 0:03:01.9]} 9...
Qd7 {[%clk 0:02:53.3]} 10. h4 {[%clk 0:02:54.3]} 10... h6 {[%clk 0:02:50.5]} 11.
Kb1 {[%clk 0:02:53.6]} 11... a6 {[%clk 0:02:49]} 12. h5 {[%clk 0:02:49.4]} 12...
O-O-O {[%clk 0:02:47.7]} 13. Nd4 {[%clk 0:02:47.4]} 13... Nxd4 {[%clk
0:02:45.8]} 14. cxd4 {[%clk 0:02:48.3]} 14... d5 {[%clk 0:02:40.5]} 15. f3
{[%clk 0:02:44.6]} 15... Bd6 {[%clk 0:02:36]} 16. Bd3 {[%clk 0:02:43.5]} 16...
Bxf4 {[%clk 0:02:25.5]} 17. Qxf4 {[%clk 0:02:44.4]} 17... Qd6 {[%clk 0:02:25.1]}
18. Qxd6 {[%clk 0:02:43.3]} 18... Rxd6 {[%clk 0:02:18.1]} 19. Rde1 {[%clk
0:02:43.1]} 19... Rdd8 {[%clk 0:02:17.1]} 20. Re5 {[%clk 0:02:41.4]} 20... Rde8
{[%clk 0:02:12.4]} 21. Kc1 {[%clk 0:02:34.4]} 21... c6 {[%clk 0:02:11.6]} 22. a4
{[%clk 0:02:32.3]} 22... a5 {[%clk 0:02:06]} 23. Kd2 {[%clk 0:02:31.2]} 23... f6
{[%clk 0:02:04.8]} 24. Rxe6 {[%clk 0:02:29.8]} 24... Rxe6 {[%clk 0:02:03.6]} 25.
Bf5 {[%clk 0:02:30.3]} 25... Kd7 {[%clk 0:02:02.9]} 26. Re1 {[%clk 0:02:30]}
26... Re8 {[%clk 0:02:02.3]} 27. Re3 {[%clk 0:02:05.7]} 27... Kd6 {[%clk
0:01:59.2]} 28. Bxe6 {[%clk 0:02:00.6]} 28... Rxe6 {[%clk 0:01:58.5]} 29. Ke2
{[%clk 0:01:51.5]} 29... Rxe3+ {[%clk 0:01:51.4]} 30. Kxe3 {[%clk 0:01:52.4]}
30... Ke6 {[%clk 0:01:50.6]} 31. Kf4 {[%clk 0:01:46.4]} 31... f5 {[%clk
0:01:49.8]} 32. b3 {[%clk 0:01:36.4]} 32... Kf6 {[%clk 0:01:47]} 33. g3 {[%clk
0:01:29.6]} 33... Ke6 {[%clk 0:01:39.4]} 34. g4 {[%clk 0:01:27.7]} 34... fxg4
{[%clk 0:01:36.2]} 35. fxg4 {[%clk 0:01:28.6]} 35... Kf6 {[%clk 0:01:36.2]} 36.
c3 {[%clk 0:01:28.9]} 36... g5+ {[%clk 0:01:28.5]} 37. hxg6 {[%clk 0:01:01.6]}
37... Kxg6 {[%clk 0:01:27.5]} 38. c4 {[%clk 0:00:48.8]} 38... Kf6 {[%clk
0:01:09.1]} 39. c5 {[%clk 0:00:34.3]} 39... Kg6 {[%clk 0:01:04.3]} 40. Ke5
{[%clk 0:00:33.9]} 40... Kg5 {[%clk 0:01:04]} 41. Kd6 {[%clk 0:00:33.8]} 41...
Kxg4 {[%clk 0:01:03.9]} 42. Kc7 {[%clk 0:00:34.4]} 42... h5 {[%clk 0:01:04.7]}
43. Kxb7 {[%clk 0:00:35]} 43... h4 {[%clk 0:01:05.1]} 44. Kxc6 {[%clk
0:00:35.6]} 44... h3 {[%clk 0:01:05.7]} 45. Kb7 {[%clk 0:00:36]} 45... h2 {[%clk
0:01:04.8]} 46. c6 {[%clk 0:00:36.4]} 46... h1=Q {[%clk 0:01:04.4]} 47. c7
{[%clk 0:00:37]} 47... Qh7 {[%clk 0:01:00.3]} 48. Kb8 {[%clk 0:00:36.6]} 48...
Qh2 {[%clk 0:00:54.1]} 49. Kb7 {[%clk 0:00:33.2]} 49... Qh7 {[%clk 0:00:51.9]}
50. Kb8 {[%clk 0:00:26.5]} 50... Qh2 {[%clk 0:00:46.8]} 51. Kb7 {[%clk
0:00:26.6]} 51... Qh7 {[%clk 0:00:30.3]} 1/2-1/2

[Event "*** Titled Tuesday Blitz"]
[Site "Chess.com"]
[Date "2020.04.21"]
[Round "5"]
[White "jonaszmb"]
[Black "AniJak"]
[Result "1-0"]
[WhiteElo "2460"]
[BlackElo "2252"]
[TimeControl "180+1"]
[EndTime "10:57:06 PDT"]
[Termination "jonaszmb won by checkmate"]

1. e4 {[%clk 0:03:00.9]} 1... c6 {[%clk 0:02:58.5]} 2. d4 {[%clk 0:03:00.5]}
2... d5 {[%clk 0:02:58.3]} 3. Nc3 {[%clk 0:03:01.2]} 3... dxe4 {[%clk
0:02:57.9]} 4. Nxe4 {[%clk 0:03:02.1]} 4... Nf6 {[%clk 0:02:58.5]} 5. Ng5 {[%clk
0:03:00.1]} 5... Bf5 {[%clk 0:02:56.3]} 6. Bc4 {[%clk 0:02:36.3]} 6... e6 {[%clk
0:02:56.1]} 7. N1f3 {[%clk 0:02:33.2]} 7... h6 {[%clk 0:02:55.3]} 8. Nxf7 {[%clk
0:02:25.3]} 8... Kxf7 {[%clk 0:02:52.9]} 9. Ne5+ {[%clk 0:02:25.5]} 9... Kg8
{[%clk 0:02:41.4]} 10. g4 {[%clk 0:02:12.3]} 10... Be4 {[%clk 0:02:28.9]} 11.
Bxe6+ {[%clk 0:02:10.1]} 11... Kh7 {[%clk 0:02:27.3]} 12. f3 {[%clk 0:01:56.7]}
12... Qe7 {[%clk 0:01:57.3]} 13. Bb3 {[%clk 0:01:28.7]} 13... Nxg4 {[%clk
0:01:55.4]} 14. fxg4 {[%clk 0:01:02.4]} 14... Qh4+ {[%clk 0:01:44.8]} 15. Kd2
{[%clk 0:00:43.2]} 15... Bb4+ {[%clk 0:01:43.1]} 16. c3 {[%clk 0:00:42.1]} 16...
Rf8 {[%clk 0:01:40]} 17. cxb4 {[%clk 0:00:32.6]} 17... Rf2+ {[%clk 0:01:39.3]}
18. Ke3 {[%clk 0:00:19.2]} 18... Nd7 {[%clk 0:01:09.8]} 19. Kxe4 {[%clk
0:00:12.4]} 19... Nf6+ {[%clk 0:01:07.4]} 20. Kd3 {[%clk 0:00:11.4]} 20... Qh3+
{[%clk 0:01:03.7]} 21. Be3 {[%clk 0:00:10.1]} 21... Re8 {[%clk 0:00:38.2]} 22.
Qb1 {[%clk 0:00:09.6]} 22... Nd5 {[%clk 0:00:21.4]} 23. Bxd5 {[%clk 0:00:07.9]}
23... cxd5 {[%clk 0:00:20]} 24. Kc3+ {[%clk 0:00:07.5]} 24... Kg8 {[%clk
0:00:18.8]} 25. Qd3 {[%clk 0:00:07.7]} 25... Rg2 {[%clk 0:00:16.9]} 26. Rhe1
{[%clk 0:00:06.1]} 26... Qxh2 {[%clk 0:00:15.4]} 27. Rab1 {[%clk 0:00:04.8]}
27... Rc8+ {[%clk 0:00:15.3]} 28. Kb3 {[%clk 0:00:05]} 28... Rg3 {[%clk
0:00:13.4]} 29. a3 {[%clk 0:00:03.9]} 29... Qh3 {[%clk 0:00:12.4]} 30. Ka2
{[%clk 0:00:03.7]} 30... Rg2 {[%clk 0:00:11.5]} 31. Qb5 {[%clk 0:00:03.6]} 31...
b6 {[%clk 0:00:10.8]} 32. Qxd5+ {[%clk 0:00:03.8]} 32... Kh7 {[%clk 0:00:09.7]}
33. Qe4+ {[%clk 0:00:04.2]} 33... Kh8 {[%clk 0:00:09.5]} 34. Ng6+ {[%clk
0:00:04.2]} 34... Kg8 {[%clk 0:00:08.9]} 35. Ne7+ {[%clk 0:00:04.5]} 35... Kf8
{[%clk 0:00:09]} 36. Nxc8 {[%clk 0:00:04.7]} 36... Rg3 {[%clk 0:00:08.5]} 37.
Rf1+ {[%clk 0:00:05]} 37... Kg8 {[%clk 0:00:07.9]} 38. Ne7+ {[%clk 0:00:05.6]}
38... Kh8 {[%clk 0:00:07.8]} 39. Rf8# {[%clk 0:00:06.4]} 1-0